Cogmind - Beta 11 --- EXPLORER MODE // 2022.04.20 @ 14:35:42 Player: POG Result: Self-destructed Performance ------------- Evolutions (7) 3500 Regions Visited (19) 3800 Robots Destroyed (143) 715 Value Destroyed (7272) 7272 Prototype IDs (41) 820 Alien Tech Used (0) 0 Bonus (3495) 3495 TOTAL SCORE: 19602 Bonus ------- High Alert Combat Kills 75 Follower Combat Kills 1328 Entered Garrisons 600 Used RIF Installer 1500 Aligned with FarCom 300 Friendly Fire -308 Cogmind --------- Core Integrity 1029/1300 Matter 174/300 Energy 410/410 System Corruption 0% Temperature Cool (0) Movement Flying (27) Location -3/Research Parts ------- > --- POWER (3) -------- Light Nuclear Core Micro Antimatter Reactor > --- PROPULSION (6) --- Impulse Thruster Field Propulsion Array Q-thruster Q-thruster Cooled Impulse Thruster > --- UTILITY (10) ----- Power Amplifier Compact Battery Improved Armor Integrity Analyzer Advanced ECM Suite Makeshift Armor Plating Graphene Brace Relay Coupler [Heavy] (20) > --- WEAPON (3) ------- Phase Gun > --- INVENTORY (5) ---- Wheel Improved Cesium-ion Thruster Micro-nuke Launcher Flamer Peak State ------------ > --- POWER ------------ Light Nuclear Core Light Nuclear Core Micro Antimatter Reactor > --- PROPULSION ------- Impulse Thruster Field Propulsion Array Q-thruster Q-thruster Cooled Impulse Thruster > --- UTILITY ---------- Compact Battery Experimental Signal Interpreter Improved Armor Integrity Analyzer Transmission Jammer Advanced ECM Suite Improved Light Armor Plating Makeshift Armor Plating Graphene Brace Relay Coupler [Heavy] > --- WEAPON ----------- Molecular Deconstructor > --- INVENTORY -------- Wheel Improved Cesium-ion Thruster Phase Gun Micro-nuke Launcher Flamer [Rating: 126] Favorites ----------- Power Light Nuclear Core Engine Improved Deuterium Engine Power Core Light Nuclear Core Reactor Micro Antimatter Reactor Propulsion Wheel Treads Light Treads Leg Improved Carbon-fiber Leg Wheel Wheel Hover Unit Hover Unit Flight Unit Cooled VTOL Module Utility Medium Storage Unit Device Weight Redist. System Storage Medium Storage Unit Processor 0b10 Alert Chip Hackware Hacking Suite Protection Hardened Medium Armor Plating Weapon Enhanced Autogun Energy Gun Advanced Beam Rifle Energy Cannon Disruptor Cannon Ballistic Gun Enhanced Autogun Ballistic Cannon Slug Cannon Launcher Micro-nuke Launcher Special Weapon Remote Datajack Impact Weapon Power Maul Slashing Weapon Chainsword Build | -11 -10 -10 -10 -9 -8 -8 -8 -7 -7 -7 -7 -6 -6 -6 -5 -4 -4 -4 -3 ------- Run | Scr Mat Min Exi Min Mat Gar Mat Fac Gar Fac Gar Fac Low Low Fac Fac Upp Upp Res Slots Evolved 15 | . 1 . . . 4 . . 2 . . . 2 . . 2 2 . . 2 Power 2 | . . . . . . . . . . . . . . . . 1 . . 1 Propulsion 4 | . . . . . . . . . . . . 2 . . 1 . . . 1 Utility 8 | . 1 . . . 3 . . 2 . . . . . . 1 1 . . . Weapon 1 | . . . . . 1 . . . . . . . . . . . . . . Parts Attached 237 | 7 6 1 . 1 29 9 18 40 20 4 21 13 14 1 1 21 17 . 14 Power 21 | 1 . . . . 2 1 1 5 1 . 1 . 1 . . 3 3 . 2 Engine 4 | 1 . . . . . 1 . . 1 . 1 . . . . . . . . Core 15 | . . . . . 2 . 1 5 . . . . 1 . . 3 3 . . Reactor 2 | . . . . . . . . . . . . . . . . . . . 2 Propulsion 52 | 2 2 . . . 7 . 6 3 5 . 4 8 4 . 1 2 4 . 4 Treads 2 | 2 . . . . . . . . . . . . . . . . . . . Leg 13 | . . . . . . . . . 5 . 4 4 . . . . . . . Wheel 11 | . 2 . . . 3 . 3 3 . . . . . . . . . . . Hover 2 | . . . . . 1 . 1 . . . . . . . . . . . . Flight 24 | . . . . . 3 . 2 . . . . 4 4 . 1 2 4 . 4 Utility 68 | 2 1 . . . 9 5 2 12 7 1 6 2 5 1 . 7 2 . 6 Device 27 | 1 . . . . 6 1 . 7 . . . . 3 1 . 5 . . 3 Storage 2 | 1 . . . . . . . . . . . . . . . . 1 . . Processor 6 | . 1 . . . 2 . . 1 . . . . . . . . . . 2 Hackware 27 | . . . . . . 4 2 4 7 1 5 2 . . . 2 . . . Protection 6 | . . . . . 1 . . . . . 1 . 2 . . . 1 . 1 Artifact . | . . . . . . . . . . . . . . . . . . . . Weapon 96 | 2 3 1 . 1 11 3 9 20 7 3 10 3 4 . . 9 8 . 2 Energy Gun 26 | . . . . . 7 2 2 6 3 . . . . . . 2 3 . 1 Energy Cannon 1 | . . . . . . . . . . . . . . . . 1 . . . Ballistic Gun 25 | 2 . . . . . . 3 5 . 3 4 . 4 . . 2 2 . . Ballistic Cannon 2 | . . 1 . . . . . . . . . 1 . . . . . . . Launcher 2 | . . . . . 1 . . . . . . . . . . . . . 1 Special Weapon 35 | . 3 . . . 3 1 4 8 3 . 4 2 . . . 4 3 . . Impact Weapon 1 | . . . . 1 . . . . . . . . . . . . . . . Slashing Weapon 4 | . . . . . . . . 1 1 . 2 . . . . . . . . Piercing Weapon . | . . . . . . . . . . . . . . . . . . . . Special Melee Weapon . | . . . . . . . . . . . . . . . . . . . . Unidentified Prototypes 12 | . . . . . 5 . 1 1 . . . . . . . 1 1 . 3 Corrupted Parts 1 | . . . . . 1 . . . . . . . . . . . . . . System Corruption 2 | . . . . . 2 . . . . . . . . . . . . . . Parts Lost 64 | . 1 . . . 4 1 2 11 9 2 4 . 4 . . 10 12 . 4 Power 11 | . . . . . . . . 4 . . 1 . 1 . . 2 2 . 1 Propulsion 15 | . . . . . 2 1 1 3 4 . 1 . . . . . 3 . . Utility 22 | . . . . . . . 1 2 2 2 2 . 3 . . 4 4 . 2 Weapon 16 | . 1 . . . 2 . . 2 3 . . . . . . 4 3 . 1 Highest Loss Streak 5 | . 1 . . . 3 1 2 3 5 2 2 . 2 . . 5 5 . 2 To Critical Strikes . | . . . . . . . . . . . . . . . . . . . . Average Slot Usage (%) 92 | . 99 100 100 100 94 95 93 94 90 95 95 92 90 87 83 79 80 70 76 Engine 5 | . 12 12 12 12 1 7 5 . 7 7 7 6 5 . . . . . . Core 3 | . . . . . 6 . 2 7 . . . . . 6 5 8 9 10 8 Treads 1 | . 24 . . . . . . . . . . . . . . . . . . Leg 4 | . . . . . . . . . 5 14 13 23 21 . . . . . . Wheel 8 | . . 25 25 25 13 12 9 11 6 . . . . . . . . . . Flight 3 | . . . . . . . . . . . . 1 3 25 27 25 24 25 22 Device 12 | . 12 12 12 12 15 10 8 16 16 7 7 2 5 18 16 20 21 15 13 Storage 7 | . 12 12 12 12 8 8 8 7 7 7 7 6 4 . . . 3 5 4 Processor 8 | . 12 12 12 12 15 16 16 14 7 5 . . . . . . . . 3 Hackware 12 | . . . . . . 5 10 16 20 33 36 28 16 12 11 10 6 5 4 Protection 2 | . . . . . 4 8 5 . . . 1 6 12 6 5 1 2 5 8 Energy Gun 3 | . . . . . 11 13 5 3 6 . . . . . . 2 2 . 2 Ballistic Gun 5 | . 2 . . . . . 9 8 . 13 16 6 6 12 11 1 . . . Ballistic Cannon 2 | . . 9 12 12 1 . . . . . . 3 5 . . . . . . Special Weapon 6 | . 22 14 12 5 2 2 1 4 2 2 2 5 6 6 5 6 9 5 4 Impact Weapon 2 | . . . . 6 8 8 8 4 . . . . . . . . . . . Slashing Weapon 1 | . . . . . . . . . 8 4 2 2 . . . . . . . Naked Turns . | . . . . . . . . . . . . . . . . . . . . Heaviest Build 58 | 19 19 24 24 26 38 36 37 31 33 29 45 50 58 21 21 33 33 26 43 Greatest Support 74 | 40 40 20 20 20 22 22 20 32 36 36 41 74 74 30 37 37 37 27 45 Greatest Overweight (x) 6 | 6 1 1 1 1 4 2 3 3 3 . 1 1 2 . . 2 1 . . Average Overweight (x) . | 1 . . 1 1 1 1 1 1 . . . . . . . . . . . Largest Inventory Capacity 10 | 10 10 10 10 10 10 10 10 10 10 10 10 10 10 5 5 5 5 5 5 Average Capacity 9 | 9 10 10 10 10 10 10 10 10 10 10 10 10 9 5 5 5 5 5 5 Most Carried 10 | 5 8 10 10 10 10 10 10 10 10 10 10 10 10 5 5 5 5 4 5 Average Carried 8 | 2 6 8 10 9 9 9 9 9 9 9 9 9 8 5 4 4 4 4 4 Final Capacity 10 | 10 10 10 10 10 10 10 10 10 10 10 10 10 5 5 5 5 5 5 5 Final Carried 10 | 5 7 10 10 10 10 10 10 10 9 10 10 10 5 5 4 5 4 4 4 Class Distribution -------------------- 56% | Hacker-Mutant 12% | Bothacker-Mutant 10% | Hacker-Sprinter 5% | Hacker-Skirmisher 4% | Hacker-Assassin 3% | Scavenger-Mutant Dominant Class ---------------- Hacker-Mutant | -10/Materials Hacker-Mutant | -10/Mines Hacker-Mutant | -10/Exiles Hacker-Assassin | -9/Mines Hacker-Mutant | -8/Materials Hacker-Mutant | -8/Garrison Hacker-Mutant | -8/Materials Hacker-Mutant | -7/Factory Hacker-Mutant | -7/Garrison Hacker-Skirmisher | -7/Factory Bothacker-Mutant | -7/Garrison Bothacker-Mutant | -6/Factory Hacker-Mutant | -6/Lower Caves Hacker-Sprinter | -6/Lower Caves Hacker-Sprinter | -5/Factory Hacker-Sprinter | -4/Factory Hacker-Sprinter | -4/Upper Caves Hacker-Sprinter | -4/Upper Caves Generator-Sprinter | -3/Research Resources | -11 -10 -10 -10 -9 -8 -8 -8 -7 -7 -7 -7 -6 -6 -6 -5 -4 -4 -4 -3 ----------- Run | Scr Mat Min Exi Min Mat Gar Mat Fac Gar Fac Gar Fac Low Low Fac Fac Upp Upp Res Matter Collected 4544 | 294 31 149 . 20 463 133 397 662 278 168 688 269 561 13 . 47 229 50 92 Remotely . | . . . . . . . . . . . . . . . . . . . . Salvage Created 5722 | 139 31 191 . . 715 343 505 1245 503 187 789 358 458 . . . 216 . 42 Parts 286 | 9 10 6 . . 25 14 34 70 16 8 41 13 24 . . . 16 . . Haulers Intercepted 2 | . . . . . 2 . . . . . . . . . . . . . . Recyclers Shooed 3 | 1 . . . . . . . 1 . . . 1 . . . . . . . Parts Field Recycled . | . . . . . . . . . . . . . . . . . . . . Retrieved Matter . | . . . . . . . . . . . . . . . . . . . . Parts Self-Destructed . | . . . . . . . . . . . . . . . . . . . . Prevented . | . . . . . . . . . . . . . . . . . . . . Kills | -11 -10 -10 -10 -9 -8 -8 -8 -7 -7 -7 -7 -6 -6 -6 -5 -4 -4 -4 -3 ------- Run | Scr Mat Min Exi Min Mat Gar Mat Fac Gar Fac Gar Fac Low Low Fac Fac Upp Upp Res Combat Hostiles Destroyed 118 | . 4 3 . . 13 6 11 21 11 3 19 7 12 . . . 7 . 1 Melee 4 | . . . . . . . 2 . 2 . . . . . . . . . . Guns 81 | . . . . . 7 3 7 19 8 3 19 3 7 . . . 4 . 1 Cannons 22 | . 4 3 . . 4 . . 2 . . . 4 5 . . . . . . Classes Destroyed 14 | 2 2 1 . . 3 . 1 2 1 1 . . . . . . 1 . . Worker 8 | . . . . . . . 1 5 . 1 . 1 . . . . . . . Builder 4 | . 1 . . . . . 2 1 . . . . . . . . . . . Tunneler 4 | 2 . 2 . . . . . . . . . . . . . . . . . Hauler 2 | . . . . . 2 . . . . . . . . . . . . . . Recycler 4 | 1 . 1 . . . . . 1 . . . 1 . . . . . . . Operator 2 | . . . . . 1 . . 1 . . . . . . . . . . . Swarmer 38 | . 4 . . . 1 . 4 3 2 1 9 3 5 . . . 6 . . Grunt 48 | . . 3 . . 8 3 5 8 7 . 7 2 5 . . . . . . Brawler 2 | . . . . . . . . . . 1 1 . . . . . . . . Duelist 6 | . . . . . . . . . 2 1 2 . 1 . . . . . . Sentry 16 | . . . . . 4 3 2 5 . . . . 1 . . . . . 1 Specialist 1 | . . . . . . . . . . . . . . . . . 1 . . Hunter 2 | . . . . . . . . 2 . . . . . . . . . . . Programmer 6 | . . . . . . . . 4 . . . 2 . . . . . . . Best Kill Streak 5 | 3 3 2 . . 3 4 3 3 3 4 5 3 4 . . . 3 . 1 Combat Bots Only 5 | . 2 2 . . 3 4 3 2 3 3 5 3 4 . . . 3 . 1 Max Kills in Single Turn 2 | 1 2 1 . . 1 1 1 2 1 2 2 1 1 . . . 1 . 1 Gunslinging 1 | . . . . . . . . . . 1 1 . . . . . . . . Exploded . | . . . . . . . . . . . . . . . . . . . . Melee 1 | . . . . . . . 1 . 1 . . . . . . . . . . Uniques/NPCs Destroyed . | . . . . . . . . . . . . . . . . . . . . Combat | -11 -10 -10 -10 -9 -8 -8 -8 -7 -7 -7 -7 -6 -6 -6 -5 -4 -4 -4 -3 -------- Run | Scr Mat Min Exi Min Mat Gar Mat Fac Gar Fac Gar Fac Low Low Fac Fac Upp Upp Res Damage Taken 7733 | . 185 65 . . 617 305 292 1123 957 198 596 372 518 . . 936 851 . 718 Core 1502 | . 21 18 . . 80 35 55 200 258 26 65 21 25 . . 256 171 . 271 Absorbed by Shields 35 | . . . . . . 33 . . 2 . . . . . . . . . . Regen/Repaired (Parts) 22 | . . . . . 22 . . . . . . . . . . . . . . Core Remaining (%) 75 | 100 . . . 84 . . 69 . . . 21 . . 94 100 . . 62 . Volleys Fired 445 | 6 24 16 . . 69 19 34 76 38 10 46 35 24 . . 8 25 . 15 Largest 3 | 2 2 2 . . 2 2 2 3 2 3 3 2 2 . . 2 2 . 1 Hottest 200 | 40 120 120 . . 122 122 122 180 145 75 78 81 83 . . 166 200 . 88 Shots Fired 783 | 12 47 31 . . 104 31 55 131 60 28 123 57 44 . . 15 30 . 15 Gun 540 | 12 . . . . 70 26 47 108 48 27 118 28 25 . . 8 17 . 6 Cannon 88 | . . 12 . . 28 . . . . . . 22 19 . . 7 . . . Launcher . | . . . . . . . . . . . . . . . . . . . . Special 155 | . 47 19 . . 6 5 8 23 12 1 5 7 . . . . 13 . 9 Kinetic 399 | 12 . 12 . . 28 . 30 70 . 27 118 50 44 . . 6 2 . . Thermal 300 | . 47 19 . . 76 26 17 52 48 . . . . . . 2 7 . 6 Explosive . | . . . . . . . . . . . . . . . . . . . . Electromagnetic 21 | . . . . . . . . . . . . . . . . 7 14 . . Robot Hit Streak 39 | 8 16 9 . . 18 31 18 25 39 18 29 13 11 . . 11 10 . 10 Robot Miss Streak 5 | 1 3 3 . . 2 1 1 2 1 1 3 5 1 . . 1 1 . 2 Penetration Max 1 | . . . . . . . . . . . 1 1 1 . . . . . . Secondary Targets 23 | . . . . . . 1 2 6 3 2 9 . . . . . . . . Max Gunslinging Chain 1 | . . . . . . 1 1 1 1 1 1 . . . . . . . . Shots Hit Robots 624 | 11 26 24 . . 80 33 49 114 63 25 92 28 33 . . 14 21 . 11 Core Hits 263 | 5 13 8 . . 32 5 17 66 29 8 39 13 17 . . 3 6 . 2 Critical Kills 4 | . . 1 . . 1 . 1 . . . 1 . . . . . . . . Critical Parts Destroyed 15 | . . 2 . . 4 2 1 4 . . 2 . . . . . . . . Critical Strikes 35 | . . 3 . . 9 6 3 7 1 . 3 . 2 . . . . . 1 Burn 13 | . . . . . 4 4 1 2 1 . . . . . . . . . 1 Destroy 11 | . . 3 . . 4 . . 1 . . 3 . . . . . . . . Blast 2 | . . . . . . . . . . . . . 2 . . . . . . Smash 8 | . . . . . 1 2 2 3 . . . . . . . . . . . Sever 1 | . . . . . . . . 1 . . . . . . . . . . . Melee Attacks 47 | . . . . . 1 7 6 8 18 . 7 . . . . . . . . Impact 22 | . . . . . 1 7 6 8 . . . . . . . . . . . Slashing 25 | . . . . . . . . . 18 . 7 . . . . . . . . Piercing . | . . . . . . . . . . . . . . . . . . . . Sneak Attacks 4 | . . . . . . . . 4 . . . . . . . . . . . Combat Hostiles . | . . . . . . . . . . . . . . . . . . . . Follow-up Attacks . | . . . . . . . . . . . . . . . . . . . . Damage Inflicted 12420 | 101 165 464 . . 1955 681 1025 2505 1278 395 1558 816 825 . . 181 315 . 156 Guns 8366 | 101 . . . . 992 516 710 1864 840 395 1558 411 381 . . 160 282 . 156 Cannons 1962 | . . 339 . . 753 . . . . . . 405 444 . . 21 . . . Explosions 296 | . . . . . 124 . . . 172 . . . . . . . . . . Melee 1360 | . . . . . 43 165 315 571 266 . . . . . . . . . . Ramming . | . . . . . . . . . . . . . . . . . . . . Kinetic 6435 | 101 . 339 . . 753 . 404 1128 . 395 1558 816 825 . . 116 . . . Thermal 4044 | . 165 125 . . 1035 516 306 806 840 . . . . . . 44 51 . 156 Explosive 172 | . . . . . . . . . 172 . . . . . . . . . . Electromagnetic 409 | . . . . . 124 . . . . . . . . . . 21 264 . . Impact 1094 | . . . . . 43 165 315 571 . . . . . . . . . . . Slashing 266 | . . . . . . . . . 266 . . . . . . . . . . Piercing . | . . . . . . . . . . . . . . . . . . . . Highest Corruption 10 | . 1 1 1 1 2 2 2 2 4 5 6 1 1 1 . 9 10 10 . Average Corruption 2 | . 1 1 1 1 2 2 2 1 2 4 5 1 1 1 . 7 9 10 . Corruption Purged . | . . . . . . . . . . . . . . . . . . . . Corruption Blocked . | . . . . . . . . . . . . . . . . . . . . Effects 143 | . 7 4 2 2 14 5 10 10 16 7 38 . 6 . . 9 12 1 . Message Errors 34 | . . 1 1 . 1 1 2 1 3 1 13 . . . . 5 4 1 . Matter Fused 41 | . 4 2 . 1 4 2 4 3 5 2 9 . 2 . . 2 1 . . Heat Flow Errors 15 | . . . 1 . 3 . 2 3 . . 2 . . . . 1 3 . . Energy Discharges 18 | . 1 . . . 1 2 1 2 3 . 4 . 2 . . . 2 . . Parts Rejected 2 | . . . . . . . . 1 1 . . . . . . . . . . Data Loss (minor) 18 | . 1 . . 1 5 . 1 . 3 2 4 . . . . . 1 . . Data Loss (major) 5 | . . 1 . . . . . . 1 . . . 1 . . 1 1 . . Misfires 4 | . . . . . . . . . . 1 2 . 1 . . . . . . Alerts 2 | . 1 . . . . . . . . . 1 . . . . . . . . Weapon Failures 4 | . . . . . . . . . . 1 3 . . . . . . . . Overload Shots . | . . . . . . . . . . . . . . . . . . . . Overflow Damage 678 | . 4 . . . 69 83 70 370 75 . . 7 . . . . . . . Projectiles 37 | . 4 . . . 26 . . . . . . 7 . . . . . . . Explosions 75 | . . . . . . . . . 75 . . . . . . . . . . Melee 566 | . . . . . 43 83 70 370 . . . . . . . . . . . Knockbacks 21 | . . 5 . . 8 2 . 2 . . . 1 3 . . . . . . Impact 4 | . . . . . . 2 . 2 . . . . . . . . . . . Kinetic 17 | . . 5 . . 8 . . . . . . 1 3 . . . . . . Secondary . | . . . . . . . . . . . . . . . . . . . . Self-Inflicted Damage 108 | . . . . . 10 . . . 98 . . . . . . . . . . Shots 2 | . . . . . 1 . . . 1 . . . . . . . . . . Rammed . | . . . . . . . . . . . . . . . . . . . . Targets Rammed . | . . . . . . . . . . . . . . . . . . . . Kicked . | . . . . . . . . . . . . . . . . . . . . Crushed . | . . . . . . . . . . . . . . . . . . . . Highest Temperature 743 | . 60 54 124 . 310 366 743 197 136 76 160 81 262 . . 214 321 46 576 Average Temperature 105 | . 22 14 64 . 75 161 184 65 56 39 60 18 98 . . 39 73 22 181 Received Heat Transfer 2676 | . . 60 . . 477 291 153 528 420 . 132 129 225 . . 147 69 . 45 Effects 39 | . . . . . 1 6 13 . . . . . . . . . 1 . 18 Shutdowns 11 | . . . . . . 1 3 . . . . . . . . . . . 7 Energy Bleed 15 | . . . . . 1 1 6 . . . . . . . . . . . 7 Interference 7 | . . . . . . 4 1 . . . . . . . . . . . 2 Matter Decay 1 | . . . . . . . 1 . . . . . . . . . . . . Damage (minor) 3 | . . . . . . . 2 . . . . . . . . . 1 . . Damage (major) 1 | . . . . . . . . . . . . . . . . . . . 1 Damage (core) 1 | . . . . . . . . . . . . . . . . . . . 1 Siege Activations . | . . . . . . . . . . . . . . . . . . . . Robots Corrupted 1 | . . . . . . . . . . . . . . . . . 1 . . Combat Hostiles 1 | . . . . . . . . . . . . . . . . . 1 . . Parts Fried 13 | . . . . . 3 4 4 2 . . . . . . . . . . . Impact Corruptions 20 | . . . . . 1 2 4 13 . . . . . . . . . . . Robots Melted 2 | . . . . . . 1 . . 1 . . . . . . . . . . Combat Hostiles 2 | . . . . . . 1 . . 1 . . . . . . . . . . Parts Melted 21 | . 2 1 . . 7 1 1 2 6 . . 1 . . . . . . . Heat Transferred 9608 | . 775 450 . . 2368 1050 592 1834 1982 . . . . . . 100 161 . 296 Parts Sabotaged . | . . . . . . . . . . . . . . . . . . . . Parts Stolen . | . . . . . . . . . . . . . . . . . . . . Parts Stripped . | . . . . . . . . . . . . . . . . . . . . Power Chain Reactions . | . . . . . . . . . . . . . . . . . . . . Missiles Intercepted . | . . . . . . . . . . . . . . . . . . . . Alert | -11 -10 -10 -10 -9 -8 -8 -8 -7 -7 -7 -7 -6 -6 -6 -5 -4 -4 -4 -3 ------- Run | Scr Mat Min Exi Min Mat Gar Mat Fac Gar Fac Gar Fac Low Low Fac Fac Upp Upp Res Peak Influence 723 | 15 78 75 . . 176 244 266 222 426 171 723 305 . . . 86 . . 57 Initial 281 | . 7 4 . . . 32 86 3 27 150 91 281 . . . . . . 16 Average 141 | 4 26 40 . . 58 146 103 76 265 153 542 217 . . . 23 . . 28 Maximum Alert Level 3 | . . . . . . 1 1 1 2 . 3 1 . . . . . . . Low Security (%) 76 | 100 100 100 . 100 100 78 83 96 26 100 5 35 . . 100 100 . . 100 Level 1 14 | . . . . . . 21 16 3 70 . 18 64 . . . . . . . Level 2 4 | . . . . . . . . . 2 . 39 . . . . . . . . Level 3 3 | . . . . . . . . . . . 36 . . . . . . . . Level 4 . | . . . . . . . . . . . . . . . . . . . . Level 5 . | . . . . . . . . . . . . . . . . . . . . High Security . | . . . . . . . . . . . . . . . . . . . . Max Security . | . . . . . . . . . . . . . . . . . . . . Squads Dispatched 29 | . . . . 1 4 . 3 11 . 1 . 7 . . . 1 . . 1 Investigation 5 | . . . . 1 . . 1 1 . . . 1 . . . . . . 1 Extermination 7 | . . . . . . . . 4 . . . 2 . . . 1 . . . Reinforcement 11 | . . . . . 1 . 2 6 . 1 . 1 . . . . . . . Assault . | . . . . . . . . . . . . . . . . . . . . Garrison 6 | . . . . . 3 . . . . . . 3 . . . . . . . Intercept . | . . . . . . . . . . . . . . . . . . . . Searches Triggered . | . . . . . . . . . . . . . . . . . . . . Construction Impeded . | . . . . . . . . . . . . . . . . . . . . Haulers Reinforced 2 | . . . . . . . . 2 . . . . . . . . . . . Active Scanning Responses . | . . . . . . . . . . . . . . . . . . . . Cargo Convoy Interrupts . | . . . . . . . . . . . . . . . . . . . . Alert ID Control Effect 17 | . . . . . . . . . . 2 1 12 2 . . . . . . Stealth | -11 -10 -10 -10 -9 -8 -8 -8 -7 -7 -7 -7 -6 -6 -6 -5 -4 -4 -4 -3 --------- Run | Scr Mat Min Exi Min Mat Gar Mat Fac Gar Fac Gar Fac Low Low Fac Fac Upp Upp Res Distress Signals 9 | . 2 . . . 3 . 1 . . . . 3 . . . . . . . Communications Jammed 11 | . . . . . . . . . . . . . . . . 11 . . . Distress Signals 11 | . . . . . . . . . . . . . . . . 11 . . . Times Spotted 292 | . 12 4 . . 33 13 23 42 29 6 26 27 18 . . 22 33 . 4 Peak Tracking Total 12 | . 5 2 . . 5 4 5 4 5 3 4 6 7 . . 12 11 . 3 Tactical Retreats 14 | . . . . . 1 . . 1 1 . 1 . . . . 5 5 . . Traps | -11 -10 -10 -10 -9 -8 -8 -8 -7 -7 -7 -7 -6 -6 -6 -5 -4 -4 -4 -3 ------- Run | Scr Mat Min Exi Min Mat Gar Mat Fac Gar Fac Gar Fac Low Low Fac Fac Upp Upp Res Traps Triggered 22 | . 1 . . . . 7 . 3 2 1 4 . . . . 3 . . 1 Indirectly . | . . . . . . . . . . . . . . . . . . . . Trap Hack Attempts . | . . . . . . . . . . . . . . . . . . . . Triggered . | . . . . . . . . . . . . . . . . . . . . Disarmed . | . . . . . . . . . . . . . . . . . . . . Reprogrammed . | . . . . . . . . . . . . . . . . . . . . Reused . | . . . . . . . . . . . . . . . . . . . . Traps Extracted . | . . . . . . . . . . . . . . . . . . . . Installed . | . . . . . . . . . . . . . . . . . . . . Triggered 2 | . . . . . . . . . . . . . . . . . 2 . . Machines | -11 -10 -10 -10 -9 -8 -8 -8 -7 -7 -7 -7 -6 -6 -6 -5 -4 -4 -4 -3 ---------- Run | Scr Mat Min Exi Min Mat Gar Mat Fac Gar Fac Gar Fac Low Low Fac Fac Upp Upp Res Machines Disabled 21 | . . 1 . . 3 2 2 . 6 . 4 2 . . . . 1 . . Max in Single Turn 3 | . . 1 . . 3 1 1 . 2 . 1 . . . . . 1 . . Garrison Relay 10 | . . . . . . 2 . . 4 . 4 . . . . . . . . Phase Generator 1 | . . . . . . . . . 1 . . . . . . . . . . Machines Sabotaged . | . . . . . . . . . . . . . . . . . . . . Garrisons Compromised . | . . . . . . . . . . . . . . . . . . . . Overloaded Fab Kills . | . . . . . . . . . . . . . . . . . . . . Hacking | -11 -10 -10 -10 -9 -8 -8 -8 -7 -7 -7 -7 -6 -6 -6 -5 -4 -4 -4 -3 --------- Run | Scr Mat Min Exi Min Mat Gar Mat Fac Gar Fac Gar Fac Low Low Fac Fac Upp Upp Res Machines Accessed 41 | . 4 . 1 1 5 . 3 12 . 1 . 3 1 . . 6 1 . 3 Terminals 25 | . 3 . . . 3 . 3 7 . . . 1 1 . . 5 . . 2 Fabricators 3 | . . . . . . . . 1 . . . 1 . . . . . . 1 Repair Stations 2 | . . . . . 1 . . . . . . . . . . 1 . . . Recycling Units 5 | . 1 . . . . . . 3 . . . 1 . . . . . . . Scanalyzers . | . . . . . . . . . . . . . . . . . . . . Garrison Access 3 | . . . . . 1 . . 1 . 1 . . . . . . . . . Total Hacks 76 | . 8 . 1 1 8 . 10 22 . 2 . 5 3 . . 11 1 . 4 Successful 60 | . 7 . 1 1 8 . 6 16 . 2 . 3 3 . . 8 1 . 4 Failed 16 | . 1 . . . . . 4 6 . . . 2 . . . 3 . . . Catastrophic . | . . . . . . . . . . . . . . . . . . . . Database Lockouts . | . . . . . . . . . . . . . . . . . . . . Manual 39 | . 5 . 1 . 3 . 9 12 . . . . . . . 7 1 . 1 Terminals 52 | . 6 . . . 5 . 10 15 . . . 1 3 . . 10 . . 2 Fabricators 4 | . . . . . . . . 1 . . . 1 . . . . . . 2 Repair Stations 3 | . . . . . 2 . . . . . . . . . . 1 . . . Recycling Units 9 | . 2 . . . . . . 4 . . . 3 . . . . . . . Scanalyzers . | . . . . . . . . . . . . . . . . . . . . Garrison Access 5 | . . . . . 1 . . 2 . 2 . . . . . . . . . Terminal Hacks 21 | . 2 . 1 1 2 . 1 3 . . . 1 3 . . 5 1 . 1 Record 4 | . . . . . . . . . . . . . 3 . . . . . 1 Part Schematic 3 | . . . . . . . . 2 . . . . . . . 1 . . . Robot Analysis 1 | . 1 . . . . . . . . . . . . . . . . . . Prototype ID Bank 2 | . . . . . 1 . 1 . . . . . . . . . . . . Open Door 2 | . . . . 1 . . . . . . . . . . . . 1 . . Open DSF 2 | . . . . . . . . 1 . . . 1 . . . . . . . Branch Access Points 2 | . 1 . . . . . . . . . . . . . . 1 . . . Unreport Threat 3 | . . . . . 1 . . . . . . . . . . 2 . . . Zone Layout 1 | . . . . . . . . . . . . . . . . 1 . . . EX-Prototype ID Bank 1 | . . . 1 . . . . . . . . . . . . . . . . Fabricator Hacks 4 | . . . . . . . . 1 . . . 1 . . . . . . 2 Network Status 2 | . . . . . . . . 1 . . . 1 . . . . . . . Load Schematic 1 | . . . . . . . . . . . . . . . . . . . 1 Build 1 | . . . . . . . . . . . . . . . . . . . 1 Repair Station Hacks 3 | . . . . . 2 . . . . . . . . . . 1 . . . Scan Component 2 | . . . . . 1 . . . . . . . . . . 1 . . . Repair 1 | . . . . . 1 . . . . . . . . . . . . . . Recycling Unit Hacks 6 | . 2 . . . . . . 3 . . . 1 . . . . . . . Report Inventory 3 | . 1 . . . . . . 1 . . . 1 . . . . . . . Retrieve Matter 1 | . 1 . . . . . . . . . . . . . . . . . . Retrieve Components 2 | . . . . . . . . 2 . . . . . . . . . . . Scanalyzer . | . . . . . . . . . . . . . . . . . . . . Garrison Access Hacks 5 | . . . . . 1 . . 2 . 2 . . . . . . . . . Unlock Access 3 | . . . . . 1 . . 1 . 1 . . . . . . . . . Coupler Status 2 | . . . . . . . . 1 . 1 . . . . . . . . . Unauthorized Hacks 21 | . 3 . . . 3 . 5 7 . . . . . . . 2 . . 1 Terminals 21 | . 3 . . . 3 . 5 7 . . . . . . . 2 . . 1 Assimilate 4 | . . . . . . . 2 2 . . . . . . . . . . . Botnet 17 | . 3 . . . 3 . 3 5 . . . . . . . 2 . . 1 Fabricators . | . . . . . . . . . . . . . . . . . . . . Repair Stations . | . . . . . . . . . . . . . . . . . . . . Recycling Units . | . . . . . . . . . . . . . . . . . . . . Scanalyzers . | . . . . . . . . . . . . . . . . . . . . Garrison Access . | . . . . . . . . . . . . . . . . . . . . Data Cores Recovered . | . . . . . . . . . . . . . . . . . . . . Used . | . . . . . . . . . . . . . . . . . . . . Hacking Detections 29 | . 3 . . . 2 . 3 9 . . . 2 1 . . 6 . . 3 Full Trace Events 5 | . . . . . . . 1 1 . . . 1 1 . . . . . 1 Feedback Events . | . . . . . . . . . . . . . . . . . . . . Feedback Blocked . | . . . . . . . . . . . . . . . . . . . . Robot Schematics Acquired . | . . . . . . . . . . . . . . . . . . . . Robots Built . | . . . . . . . . . . . . . . . . . . . . Authchips . | . . . . . . . . . . . . . . . . . . . . Time . | . . . . . . . . . . . . . . . . . . . . Total Robot Build Rating . | . . . . . . . . . . . . . . . . . . . . Part Schematics Acquired 3 | . . . . . . . . 2 . . . . . . . 1 . . . Parts Built . | . . . . . . . . . . . . . . . . . . . . Authchips . | . . . . . . . . . . . . . . . . . . . . Time 128 | . . . . . . . . . . . . . . . . . . . 128 Total Part Build Rating . | . . . . . . . . . . . . . . . . . . . . Parts Repaired 1 | . . . . . 1 . . . . . . . . . . . . . . Time 26 | . . . . . 26 . . . . . . . . . . . . . . Parts Recycled . | . . . . . . . . . . . . . . . . . . . . Recycled Matter . | . . . . . . . . . . . . . . . . . . . . Retrieved Matter . | . . . . . . . . . . . . . . . . . . . . Retrieved Components 10 | . . . . . . . . 10 . . . . . . . . . . . Parts Scanalyzed . | . . . . . . . . . . . . . . . . . . . . Part Schematics Acquired . | . . . . . . . . . . . . . . . . . . . . Parts Damaged . | . . . . . . . . . . . . . . . . . . . . Bothacking | -11 -10 -10 -10 -9 -8 -8 -8 -7 -7 -7 -7 -6 -6 -6 -5 -4 -4 -4 -3 ------------ Run | Scr Mat Min Exi Min Mat Gar Mat Fac Gar Fac Gar Fac Low Low Fac Fac Upp Upp Res Used RIF Installer 3 | . . . . . . 1 . . 1 . 1 . . . . . . . . Threat Obfuscator 1 | . . . . . . . . . . . 1 . . . . . . . . Alert ID Control 1 | . . . . . . . . . 1 . . . . . . . . . . Robots Hacked 40 | . . . . . . 5 5 9 11 1 4 5 . . . . . . . Non-combat 12 | . . . . . . . 5 6 . 1 . . . . . . . . . Combat 28 | . . . . . . 5 . 3 11 . 4 5 . . . . . . . Robot Hacks Applied 40 | . . . . . . 5 5 9 11 1 4 5 . . . . . . . drop_inventory 6 | . . . . . . . 3 2 . 1 . . . . . . . . . purge_threat 1 | . . . . . . . 1 . . . . . . . . . . . . mark_security 1 | . . . . . . . 1 . . . . . . . . . . . . relay_feed 1 | . . . . . . . . 1 . . . . . . . . . . . spike_heat 2 | . . . . . . . . . 2 . . . . . . . . . . overload_power 1 | . . . . . . . . . . . . 1 . . . . . . . formatsys_low 2 | . . . . . . . . 2 . . . . . . . . . . . formatsys_high 26 | . . . . . . 5 . 4 9 . 4 4 . . . . . . . Relay Couplers Released 45 | . . . . . . 8 . 3 17 . 17 . . . . . . . . Machine Destruction 42 | . . . . . . 8 . . 17 . 17 . . . . . . . . Programmers 3 | . . . . . . . . 3 . . . . . . . . . . . Attached 23 | . . . . . . 4 1 3 7 1 5 2 . . . . . . . Fabnet Peak Effective % . | . . . . . . . . . . . . . . . . . . . . Robots Rewired 1 | . . . . . . . . . . . . . . . . . 1 . . Allies Hacked 1 | . . . . . . . . 1 . . . . . . . . . . . Hacks Repelled . | . . . . . . . . . . . . . . . . . . . . Allies | -11 -10 -10 -10 -9 -8 -8 -8 -7 -7 -7 -7 -6 -6 -6 -5 -4 -4 -4 -3 -------- Run | Scr Mat Min Exi Min Mat Gar Mat Fac Gar Fac Gar Fac Low Low Fac Fac Upp Upp Res Total Allies 31 | . . 2 . . . 5 . 6 9 . 4 4 . . . . 1 . . Largest Group 5 | . . 2 2 . . 5 5 3 4 1 3 3 2 1 1 1 1 . . Highest-Rated Group 114 | . . 46 46 . . 80 80 90 73 32 96 114 64 32 32 32 40 . . Highest-Rated Ally 41 | . . 31 31 . . 16 16 32 32 32 32 41 32 32 32 32 40 . . Total Orders 1 | . . . . . . . . 1 . . . . . . . . . . . ROAM 1 | . . . . . . . . 1 . . . . . . . . . . . Ally Attacks 208 | . . 1 . . . 13 64 18 41 7 6 40 15 . . 1 2 . . Total Damage 5085 | . . 22 . . . 192 792 668 548 250 207 1750 551 . . 13 92 . . Kills 51 | . . 1 . . . 2 9 8 8 2 1 14 5 . . . 1 . . Allies Corrupted . | . . . . . . . . . . . . . . . . . . . . Allies Melted . | . . . . . . . . . . . . . . . . . . . . Intel | -11 -10 -10 -10 -9 -8 -8 -8 -7 -7 -7 -7 -6 -6 -6 -5 -4 -4 -4 -3 ------- Run | Scr Mat Min Exi Min Mat Gar Mat Fac Gar Fac Gar Fac Low Low Fac Fac Upp Upp Res Robot Analysis Total 1 | . 1 . . . . . . . . . . . . . . . . . . Derelict Logs Recovered 2 | . . . . . . . . . . . . . 2 . . . . . . Drone Launches . | . . . . . . . . . . . . . . . . . . . . Drone Recoveries . | . . . . . . . . . . . . . . . . . . . . Exploration | -11 -10 -10 -10 -9 -8 -8 -8 -7 -7 -7 -7 -6 -6 -6 -5 -4 -4 -4 -3 ------------- Run | Scr Mat Min Exi Min Mat Gar Mat Fac Gar Fac Gar Fac Low Low Fac Fac Upp Upp Res Turns Passed 12330 | 123 822 829 517 260 1123 441 870 2144 828 257 1141 620 814 70 76 487 440 37 431 Spaces Moved 10036 | 48 450 581 425 270 565 226 644 1669 533 190 734 437 724 156 174 731 914 111 454 Core 26 | 23 . . . . . . . . 2 . . . . . . 1 . . . Treads 461 | 25 436 . . . . . . . . . . . . . . . . . . Legs 2097 | . . . . . . . . . 208 190 734 415 550 . . . . . . Wheels 4710 | . 14 581 425 270 560 226 642 1669 323 . . . . . . . . . . Hover 5 | . . . . . 5 . . . . . . . . . . . . . . Flight 2737 | . . . . . . . 2 . . . . 22 174 156 174 730 914 111 454 Fastest Speed 20 | 50 80 80 95 95 95 100 95 80 90 120 120 91 26 26 25 25 23 24 20 Average Speed 88 | 183 157 89 95 95 103 108 115 102 112 120 130 115 93 26 25 28 24 24 26 Slowest Speed 350 | 350 160 95 95 95 300 120 174 125 200 120 195 195 159 26 26 150 94 24 27 Overloaded Moves 27 | . . . . . . . . . . . . . . . . 27 . . . Propulsion Burnouts . | . . . . . . . . . . . . . . . . . . . . Robots Hopped 36 | . . . . . . . . . . . . . . . . 33 3 . . Cave-ins Triggered . | . . . . . . . . . . . . . . . . . . . . Exploration Rate (%) 45 | 5 48 99 88 67 47 47 47 46 82 8 72 15 79 13 3 33 83 19 12 Regions Visited 19 Branch Regions 7 Pre-discovered Areas 1 | . . . . . . . . . . . . . 1 . . . . . . Known Exits Taken 16 | 1 1 1 1 1 1 . 1 1 . 1 . 1 1 1 1 1 1 1 . Unknown Exits Taken . | . . . . . . . . . . . . . . . . . . . . Scrap Searched 12 | . . . . 1 . . . . . . . . 5 1 . . 3 2 . Spaces Dug 3 | . . . . . 1 . . . . . 2 . . . . . . . . Terrain Destroyed 89 | . 1 3 . . 4 . . . 76 . 2 2 1 . . . . . . Melee 2 | . . . . . . . . . . . 2 . . . . . . . . Projectile 11 | . 1 3 . . 4 . . . . . . 2 1 . . . . . . AOE 76 | . . . . . . . . . 76 . . . . . . . . . . Terrain Rammed . | . . . . . . . . . . . . . . . . . . . . Walls Destroyed . | . . . . . . . . . . . . . . . . . . . . Machines Disabled . | . . . . . . . . . . . . . . . . . . . . Actions | -11 -10 -10 -10 -9 -8 -8 -8 -7 -7 -7 -7 -6 -6 -6 -5 -4 -4 -4 -3 --------- Run | Scr Mat Min Exi Min Mat Gar Mat Fac Gar Fac Gar Fac Low Low Fac Fac Upp Upp Res Total 12609 | 72 494 846 538 273 991 378 716 1964 673 209 854 497 815 184 205 954 1086 120 740 Wait 1594 | . 6 246 112 . 288 71 1 120 45 . 26 . 38 28 29 221 123 10 230 Move 9958 | 47 449 580 424 269 565 225 643 1669 532 190 732 436 723 155 173 674 908 110 454 Hop 25 | . . . . . . . . . . . . . . . . 23 2 . . Pick Up 89 | 12 5 3 1 1 15 5 5 19 1 1 3 5 4 . 1 3 4 . 1 Fast Attach 116 | . 3 . . 1 16 2 6 17 14 3 8 2 8 1 1 14 10 . 10 Attach 53 | 7 3 . . . 9 . 3 11 1 . 1 3 6 . . 3 4 . 2 Detach 15 | . . . . . 3 . 2 2 . 2 . 3 1 . . 1 . . 1 Swap 68 | . . 1 . . 4 7 9 12 5 1 12 8 . . . 4 3 . 2 Drop 113 | . 4 . 1 2 21 5 7 22 6 2 9 5 11 . 1 3 7 . 7 Fire 445 | 6 24 16 . . 69 19 34 76 38 10 46 35 24 . . 8 25 . 15 Melee 47 | . . . . . 1 7 6 8 18 . 7 . . . . . . . . Ram . | . . . . . . . . . . . . . . . . . . . . Kick . | . . . . . . . . . . . . . . . . . . . . Crush . | . . . . . . . . . . . . . . . . . . . . Escape Stasis 86 | . . . . . . 37 . 8 13 . 10 . . . . . . . 18 Rewire . | . . . . . . . . . . . . . . . . . . . . Trap . | . . . . . . . . . . . . . . . . . . . . Miscellaneous . | . . . . . . . . . . . . . . . . . . . . Route ------- -11/Scrapyard -10/Materials (discovered 3 exits: *Mat / *Min x2) -10/Mines (discovered 3 exits: *Mat x2 / *Exi) -10/Exiles (discovered 2 exits: *Min x2) -9/Mines (discovered 2 exits: *Mat x2) -8/Materials (discovered 2 exits: *Fac / Gar) -8/Garrison -8/Materials -7/Factory (discovered 4 exits: *Fac x2 / *Low / Gar) -7/Garrison (discovered 3 exits: *Fac x3) -7/Factory -7/Garrison (discovered 3 exits: *Fac x3) -6/Factory -6/Lower Caves -6/Lower Caves -5/Factory -4/Factory (discovered 2 exits: *Upp x2) -4/Upper Caves -4/Upper Caves -3/Research (discovered 1 exit: *Tes) History --------- Turn | Location | Event 6 | -11/Scrapyard | Identified exit to Materials 6 | -11/Scrapyard | Discovered exit to Materials (range 15) 124 | -11/Scrapyard | Entered Materials 124 | -10/Materials | Evolved 1 slot: Utility x1 162 | -10/Materials | Identified exit to Mines 305 | -10/Materials | Build established: Hacker-Mutant 411 | -10/Materials | Identified exit to Materials 411 | -10/Materials | Discovered exit to Materials (range 10) 946 | -10/Materials | Entered Mines 1123 | -10/Mines | A weapon hastily lodged in a ceiling crevice suddenly fell to the ground 1186 | -10/Mines | Discovered exit to Materials (range 12) 1407 | -10/Mines | Discovered exit to Materials (range 9) 1706 | -10/Mines | Deemed a non-threat by the Exiles lab entrance 1706 | -10/Mines | Identified exit to Exiles 1706 | -10/Mines | Discovered exit to Exiles (range 5) 1775 | -10/Mines | Entered Exiles 1775 | -10/Exiles | Accompanied by 2 allies 1792 | -10/Exiles | Identified exit to Mines 1792 | -10/Exiles | Discovered exit to Mines (range 15) 1803 | -10/Exiles | Met 8R-AWN 1805 | -10/Exiles | Led the pair of lost Derelicts to a safe place 1839 | -10/Exiles | Met EX-HEX 1865 | -10/Exiles | Met EX-BIN 1876 | -10/Exiles | Aligned with FarCom system 1877 | -10/Exiles | Given EX-Vault access code 1899 | -10/Exiles | Opened EX-Vault 1906 | -10/Exiles | Found 0b10 Alert Chip 1927 | -10/Exiles | Warned to stay clear of 0b10 Research branches 1953 | -10/Exiles | Met EX-DEC 1985 | -10/Exiles | Visited The Gauntlet 2280 | -10/Exiles | Discovered exit to Mines (range 12) 2292 | -10/Exiles | Left Exiles lab with 0b10 Alert Chip 2292 | -10/Exiles | Entered Mines 2378 | -9/Mines | Identified exit to Materials 2378 | -9/Mines | Discovered exit to Materials (range 8) 2385 | -9/Mines | Received a Rocket Launcher from a helpful Derelict 2415 | -9/Mines | Met a Derelict shopkeep closing up shop 2503 | -9/Mines | Discovered exit to Materials (range 6) 2552 | -9/Mines | Entered Materials 2552 | -8/Materials | Evolved 4 slots: Utility x3, Weapon x1 2664 | -8/Materials | Garrison activated, responded to threat 2727 | -8/Materials | Lost 3 parts (2n1w) 2784 | -8/Materials | Build established: Hacker-Assassin 3107 | -8/Materials | Repaired Mining Laser 3250 | -8/Materials | Build established: Hacker-Mutant 3495 | -8/Materials | Identified exit to Factory 3495 | -8/Materials | Discovered exit to Factory (range 9) 3675 | -8/Materials | Identified exit to Garrison 3675 | -8/Materials | Entered Garrison 3680 | -8/Garrison | Installed Relay Interface Framework 3740 | -8/Garrison | Triggered checkpoint 3830 | -8/Garrison | Garrison Relay disabled 3884 | -8/Garrison | Triggered checkpoint 3910 | -8/Garrison | Triggered checkpoint 3942 | -8/Garrison | Triggered checkpoint 4006 | -8/Garrison | Triggered checkpoint 4044 | -8/Garrison | Garrison Relay disabled 4077 | -8/Garrison | Identified exit to Materials 4077 | -8/Garrison | Discovered exit to Materials (range 10) 4116 | -8/Garrison | Entered Materials 4116 | -8/Materials | Accompanied by 5 allies 4324 | -8/Materials | Discovered exit to Factory (range 15) 4986 | -8/Materials | Entered Factory 4986 | -7/Factory | Evolved 2 slots: Utility x2 5263 | -7/Factory | Identified exit to Factory 5263 | -7/Factory | Discovered exit to Factory (range 14) 5599 | -7/Factory | Lost 3 parts (1p1n1w) 6061 | -7/Factory | Identified exit to Lower Caves 6061 | -7/Factory | Discovered exit to Lower Caves (range 6) 6525 | -7/Factory | Discovered exit to Factory (range 5) 6951 | -7/Factory | Build established: Scavenger-Mutant 7130 | -7/Factory | Identified exit to Garrison 7130 | -7/Factory | Entered Garrison 7208 | -7/Garrison | Triggered checkpoint 7241 | -7/Garrison | Garrison Relay disabled 7332 | -7/Garrison | Triggered checkpoint 7366 | -7/Garrison | Triggered checkpoint 7380 | -7/Garrison | Triggered checkpoint 7428 | -7/Garrison | Phase Generator disabled 7428 | -7/Garrison | Identified exit to Factory 7428 | -7/Garrison | Discovered exit to Factory (range 16) 7444 | -7/Garrison | Build established: Hacker-Mutant 7467 | -7/Garrison | Garrison Relay disabled 7472 | -7/Garrison | Triggered checkpoint 7554 | -7/Garrison | Triggered checkpoint 7572 | -7/Garrison | Core integrity fell below 50% 7689 | -7/Garrison | Garrison Relay disabled 7768 | -7/Garrison | Garrison Relay disabled 7781 | -7/Garrison | Lost 5 parts (2n1u2w) 7790 | -7/Garrison | Triggered checkpoint 7812 | -7/Garrison | Discovered exit to Factory (range 8) 7854 | -7/Garrison | Spotted B-75 Beast 7854 | -7/Garrison | Spotted B-75 Beast 7929 | -7/Garrison | Discovered exit to Factory (range 14) 7953 | -7/Garrison | Expanded RIF knowledge: Alert ID Control 7958 | -7/Garrison | Entered Factory 7958 | -7/Factory | Accompanied by 1 ally 8215 | -7/Factory | Identified exit to Garrison 8215 | -7/Factory | Entered Garrison 8276 | -7/Garrison | Triggered checkpoint 8327 | -7/Garrison | Garrison Relay disabled 8402 | -7/Garrison | Triggered checkpoint 8484 | -7/Garrison | Triggered checkpoint 8514 | -7/Garrison | Garrison Relay disabled 8578 | -7/Garrison | Discovered exit to Factory (range 10) 8684 | -7/Garrison | Triggered checkpoint 8690 | -7/Garrison | Triggered checkpoint 8766 | -7/Garrison | Discovered exit to Factory (range 9) 8798 | -7/Garrison | Triggered checkpoint 8828 | -7/Garrison | Garrison Relay disabled 8904 | -7/Garrison | Triggered checkpoint 8944 | -7/Garrison | Garrison Relay disabled 8982 | -7/Garrison | Discovered exit to Factory (range 10) 8999 | -7/Garrison | Expanded RIF knowledge: Threat Obfuscation 9213 | -7/Garrison | Build established: Bothacker-Mutant 9356 | -7/Garrison | Entered Factory 9356 | -6/Factory | Accompanied by 3 allies 9356 | -6/Factory | Evolved 2 slots: Propulsion x2 9716 | -6/Factory | Garrison activated, responded to threat 9870 | -6/Factory | Garrison activated, responded to threat 9954 | -6/Factory | Identified exit to Lower Caves 9954 | -6/Factory | Discovered exit to Lower Caves (range 14) 9976 | -6/Factory | Entered Lower Caves 9976 | -6/Lower Caves | Accompanied by 2 allies 10051 | -6/Lower Caves | Attracted the attention of an 0b10 checkpoint 10144 | -6/Lower Caves | Encountered a Warlord checkpoint 10379 | -6/Lower Caves | Build established: Hacker-Mutant 10432 | -6/Lower Caves | Identified exit to Lower Caves 10651 | -6/Lower Caves | Attracted the attention of an 0b10 base 10695 | -6/Lower Caves | Learned location of 1 exit from Proximity Caves 10707 | -6/Lower Caves | Learned location of Zion (-6) 10790 | -6/Lower Caves | Entered another Lower Caves area 10790 | -6/Lower Caves | Accompanied by 1 ally 10799 | -6/Lower Caves | Identified exit to Factory 10799 | -6/Lower Caves | Discovered exit to Factory (range 6) 10860 | -6/Lower Caves | Entered Factory 10860 | -5/Factory | Accompanied by 1 ally 10860 | -5/Factory | Evolved 2 slots: Propulsion x1, Utility x1 10893 | -5/Factory | Identified exit to Factory 10893 | -5/Factory | Discovered exit to Factory (range 5) 10936 | -5/Factory | Entered another Factory area 10936 | -4/Factory | Accompanied by 1 ally 10936 | -4/Factory | Evolved 2 slots: Power x1, Utility x1 10964 | -4/Factory | Build established: Hacker-Sprinter 11291 | -4/Factory | Lost 5 parts (1p3u1w) 11386 | -4/Factory | Lost 5 parts (1p1u3w) 11387 | -4/Factory | Identified exit to Upper Caves 11423 | -4/Factory | Entered Upper Caves 11505 | -4/Upper Caves | Lost 4 parts (2n1u1w) 11535 | -4/Upper Caves | Attracted the attention of an 0b10 outpost 11587 | -4/Upper Caves | Attracted the attention of an 0b10 checkpoint 11607 | -4/Upper Caves | Lost 5 parts (2p2u1w) 11693 | -4/Upper Caves | Acquired the password to a Derelict Tinkerer's latest research 11694 | -4/Upper Caves | Found Prototype Special Weapon 11694 | -4/Upper Caves | Identified Molecular Deconstructor 11789 | -4/Upper Caves | Caught by Unaware searching for contraband prototypes 11845 | -4/Upper Caves | System corruption reached 10% 11859 | -4/Upper Caves | Identified exit to Upper Caves 11859 | -4/Upper Caves | Discovered exit to Upper Caves (range 13) 11863 | -4/Upper Caves | Entered another Upper Caves area 11865 | -4/Upper Caves | Identified exit to Research 11865 | -4/Upper Caves | Discovered exit to Research (range 15) 11874 | -4/Upper Caves | Lost 3 parts (1n1u1w) 11900 | -4/Upper Caves | Entered Research 11900 | -3/Research | Evolved 2 slots: Power x1, Propulsion x1 11922 | -3/Research | Found Prototype Device 11922 | -3/Research | Identified Adv. Kinecellerator 12021 | -3/Research | Found Prototype Processor 12021 | -3/Research | Identified Exp. Signal Interpreter 12039 | -3/Research | Identified exit to Testing 12039 | -3/Research | Discovered exit to Testing (range 7) 12331 | -3/Research | Self-destructed Last Messages --------------- 12309_ Concrete disintegrates. 12309_ Concrete destabilizing. 12309_ Slug penetrates Wall. 12309_ Slug penetrates Vacuum Chamber. 12310_ Entropy package works its way towards H-77 Assassin core. 12310_ Penetrated by Slug. 12311_ Concrete disintegrates. 12311_ Concrete destabilizing. 12312_ H-77 Assassin core destabilizing. 12312_ Slug penetrates Vacuum Chamber. 12312_ Penetrated by Slug. 12313_ Concrete disintegrates. 12313_ Concrete destabilizing. 12313_ Slug penetrates Wall. 12314_ Concrete disintegrates. 12324_ Slug penetrates Wall. 12327_ Penetrated by Slug. 12327_ Slug penetrates Wall. 12330_ Penetrated by Slug. 12330_ Molecular Deconstructor destroyed. Map ----- +----------------------------------------------------+ | ?????????????????????????????????????????????????? | | ?????????????????????????????????????????????????? | | ?????????????????????????????????????????????????? | | ?????????????????????????????????????????????????? | | ?????????????????????????????????????????????????? | | ?????????????????????????????????????????? #?????? | | ????????????????????????????????????????? #?????? | | ???????????????????????????????????????? #?????? | | ??????????????????????????????????????? ??? ??? | | ????????????????????###################+#### ??? | | ????????????????????# * # ??? | | ????????????????????# # ?? | | ????????????????????# # ?? | | ????????????????????# h /[[ ?? | | ????????????????????# """ #"" ![ #???????? | | ????????????????????# """ #" ![ #???????? | | ????????????????????# """ ! #"F #???????? | | ????????????????????# #"" #???????? | | ????????????????????# # #???????? | | ????????????????############## h +???????? | | ????????????????# """T""" # #???????? | | ????????????????# """ """ # ########???????? | | ????????????????# # ####???????????? | | ????????????????# # #T #########+##? | | ????????????????# # #? | | ????????????????# @ + #? | | ????????????????# # #? | | ????????????????# """ """ # #? | | ????????????????# """ """ # "" #?? | | ????????????????# """ """ # ""T""" #?? | | ????????????????# # """"" ### | | ????????????????# # | | ????????????????############## | | ????????????????????# # | | ????????????????????# !! # ### | | ????????????????????# # #?############## | | ????????????????????# # #??????????????? | | ????????????????????# # w #??????????????? | | ????????????????????# + +??????????????? | | ????????#######?????# # #??????????????? | | ##??????# = #?????# ! # #??????????????? | | #??????# #?????# ]# #??????????????? | | #??????# #######+######## #??????????????? | | ######## ## #??????????????? | | + ## ## #??????????????? | | # ## ## * ###########?#### | | # + ## | | + ## * ## | | # ## [## """ """ ##+########??### | | # ## ! ## """ """ ## #????? | +----------------------------------------------------+ Best States ------------- Heat Dissipation 70 Energy Generation 43 Energy Capacity 470 Matter Stores 300 Matter Capacity 300 Sight Range 16 Robot Scan Range 14 Terrain Scan Density 10 Jamming Range 12 Cloak Strength 2 Power Amplification 20 Additional Mass Support 9 Armor Coverage 850 Resistance: KI 35 Resistance: TH 35 Resistance: EX 35 Resistance: EM 35 Resistance: I 35 Resistance: S 35 Resistance: P 35 Evasion (%) 73 Armor Integrity Analysis 40 Recoil Reduction 2 Energy Filtering 30 Kinecelleration 30 Salvage Targeting 1 Offensive Hacking 40 Defensive Hacking 12 Relay Coupler Types 4 Relay Coupler Value 158 Item Schematics ----------------- Hrd. Heavy Armor Plating | -7/Factory | Hacked Adv. Terrain Scan Processor | -7/Factory | Hacked Adv. Remote Datajack | -4/Factory | Hacked Robot Schematics ------------------ None Fabricated ------------ Nothing Alien Tech Used ----------------- None Achievements -------------- A New Friend Challenges ------------ None Game ------ Seed WeaponSkeletonMatter Manual? 0 Play Time 02:08:41 Cumulative 141.0 hours Start 2022.04.18 @ 14:42:45 End 2022.04.20 @ 14:35:42 Sessions 3 Manual Loads 0 Difficulty Explorer Special Mode None Game No. 48 Rogue 25 Adventurer 15 Explorer 8 Win Type - Total 15 Types 9/5/0/0/0/0/0/0/1 Lore% 54 Gallery% 66 Achievement% 64 Wizard Run 0 Options --------- ASCII 0 Keyboard 0 Movement Mouse Keybinds 0 Fullscreen 1 Font 18/SmallcapsGlow Map View 76x50 Tactical HUD 1 Map Filters NONE Filters NONE Steam 1 RUN: 6123af34-7c19-413c-bd9c-549621e09ac5